[Event "4th Nikity Blitz 2024"]
[Site "Niteroi"]
[Date "2024.08.31"]
[Round "5.1"]
[White "Santiago, Yago De Moura"]
[Black "Quintiliano, Renato R."]
[Result "1-0"]
[ECO "E05"]
[WhiteElo "2455"]
[BlackElo "2499"]
[Annotator "TA"]
[PlyCount "41"]
[EventDate "2024.08.28"]
[EventType "swiss"]
[EventCountry "BRA"]
[SourceTitle "playchess.com"]
[Source "ChessBase"]
[SourceQuality "1"]
[TimeControl "180+2"]

{[%evp 15,41,-22,-50,-24,-30,-23,-32,-35,-19,-71,-39,-70,-14,-14,123,116,120,115,95,108,151,150,193,178,229,225,726,-586]} 1. d4 {[%emt 0:00:03]} Nf6 {[%emt 0:00:02]} 2. c4 {[%emt 0:00:01]} e6 {[%emt 0:00:01]} 3. Nc3 {[%emt 0:00:02]} d5 {[%emt 0:00:01]} 4. Nf3 {[%emt 0:00:01]} Be7 {[%emt 0:00:07]} 5. g3 {[%emt 0:00:02]} O-O {[%emt 0:00:03]} 6. Bg2 {[%emt 0:00:00]} dxc4 {[%emt 0:00:14]} 7. O-O {[%emt 0:00:03]} Nc6 {[%emt 0:00:26]} 8. e4 {[%emt 0:00:04]} Rb8 {[%emt 0:00:09]} 9. Qe2 {[%emt 0:00:03]} Nxd4 {[%emt 0:00:20]} 10. Nxd4 {[%emt 0:00:02]} Qxd4 {[%emt 0:00:02]} 11. Rd1 {[%emt 0:00:01] Black is slightly better.} Qc5 {[%emt 0:00:03]} 12. e5 {[%emt 0:00:01] [#]} (12. Be3 $11 {remains equal.} Qa5 13. Bd2) 12... Nd7 $1 $17 {[%emt 0:00:06]} 13. Bf4 {[%emt 0:00:02]} Nb6 {[%emt 0:00:13]} ({Black should try} 13... Qa5 $15) 14. h4 $11 {[%emt 0:00:10]} Bd7 {[%emt 0:00:04]} (14... Qa5 $11 {keeps the balance.}) 15. Be3 $36 {[%emt 0:00:07][%mdl 2048] White is really pushing. White is more active.} Qxe5 {[%emt 0:00:03] Hoping for ...Bc5.} 16. Bxb6 {[%emt 0:00:01]} Qxe2 {[%emt 0:00:02]} 17. Nxe2 {[%emt 0:00:02]} axb6 {[%emt 0:00:04]} 18. Rxd7 {[%emt 0:00:02]} Bd6 {[%emt 0:00:02] Black is weak on the light squares} 19. Rd1 {[%emt 0:00:11]} Rfc8 {[%emt 0:00:21]} (19... Be5 {was worth a try.} 20. Nc3 c6) 20. Bxb7 $18 {[%emt 0:02:44]} Bf8 $2 {[%emt 0:01:19] [#]} (20... Rxb7 $2 {is the wrong capture.} 21. R1xd6 Kf8 22. Rc6 $18) (20... Rd8 21. Rxd8+ Rxd8) 21. R7d3 $4 {[%emt 0:00:02][%mdl 40960] Weighted Error Value: White=0.16 (very precise) /Black=0.43.  Missed win:     	White=1     	---        Mistake:       	White=1     	Black=4      Inaccurate:     	White=1     	Black=1      OK:         	White=4     	Black=2      Best:        	White=2     	---        Strong:       	---       	Black=1     . Loss on time!?} 1-0

[Event "4th Nikity Blitz 2024"]
[Site "Niteroi"]
[Date "2024.08.31"]
[Round "5.2"]
[White "Aranha Filho, Alvaro Z."]
[Black "Perdomo, Leandro"]
[Result "0-1"]
[ECO "A65"]
[WhiteElo "2196"]
[BlackElo "2359"]
[Annotator "RC"]
[PlyCount "74"]
[EventDate "2024.08.28"]
[EventType "swiss"]
[EventCountry "BRA"]
[SourceTitle "playchess.com"]
[Source "ChessBase"]
[SourceQuality "1"]
[TimeControl "180+2"]

1. d4 {[%emt 0:00:02]} Nf6 {[%emt 0:00:00]} 2. c4 {[%emt 0:00:02]} g6 {[%emt 0:00:01]} 3. Nc3 {[%emt 0:00:01]} Bg7 {[%emt 0:00:00]} 4. e4 {[%emt 0:03:05]} d6 5. f3 {[%emt 0:00:00]} O-O {[%emt 0:00:01]} 6. Bg5 {[%emt 0:00:00]} c5 {[%emt 0:00:02]} 7. d5 {[%emt 0:00:00]} h6 {[%emt 0:00:01]} 8. Be3 {[%emt 0:00:08]} e6 9. Qd2 {[%emt 0:00:00]} exd5 {[%emt 0:00:02]} 10. cxd5 {[%emt 0:00:00]} Re8 {[%emt 0:00:02]} 11. a4 {[%emt 0:00:00]} a6 {[%emt 0:00:01]} 12. Nge2 {[%emt 0:00:00]} Nbd7 {[%emt 0:00:01]} 13. Ng3 {[%emt 0:00:00]} h5 {[%emt 0:00:02]} 14. Be2 {[%emt 0:00:00]} h4 {[%emt 0:00:09]} 15. Nf1 {[%emt 0:00:00]} h3 {[%emt 0:00:01]} 16. g4 {[%emt 0:00:00]} Ne5 {[%emt 0:00:03]} 17. Ng3 {[%emt 0:00:00]} Bd7 {[%emt 0:00:47]} 18. O-O {[%emt 0:00:00]} b5 {[%emt 0:00:19]} 19. axb5 {[%emt 0:00:00]} axb5 {[%emt 0:00:01]} 20. Rxa8 {[%emt 0:00:00]} Qxa8 {[%emt 0:00:00]} 21. Nxb5 {[%emt 0:00:00]} Bxb5 {[%emt 0:00:09]} 22. Bxb5 {[%emt 0:00:00]} Rb8 {[%emt 0:00:01]} 23. Be2 {[%emt 0:00:00]} Qa2 {[%emt 0:00:24]} 24. g5 {[%emt 0:00:00]} Nfd7 {[%emt 0:00:03]} 25. f4 {[%emt 0:00:00]} Rxb2 {[%emt 0:00:17]} 26. Qd1 {[%emt 0:00:00]} Ng4 {[%emt 0:00:27]} 27. Bc1 {[%emt 0:00:00]} Bd4+ {[%emt 0:00:23]} 28. Kh1 {[%emt 0:00:00]} Rb1 {[%emt 0:00:16]} 29. Qe1 {[%emt 0:00:00]} Nf2+ {[%emt 0:00:15]} 30. Rxf2 {[%emt 0:00:00]} Bxf2 {[%emt 0:00:01]} 31. Qxf2 {[%emt 0:00:00]} Rxc1+ {[%emt 0:00:01]} 32. Nf1 {[%emt 0:00:00]} Qb1 {[%emt 0:00:04]} 33. Qf3 {[%emt 0:00:00]} Re1 {[%emt 0:00:07]} 34. e5 {[%emt 0:00:00]} dxe5 {[%emt 0:00:01]} 35. f5 {[%emt 0:00:01]} Qxf5 {[%emt 0:00:04]} 36. Qxf5 {[%emt 0:00:10]} gxf5 {[%emt 0:00:01]} 37. Kg1 {[%emt 0:00:01]} Rxe2 {[%emt 0:00:01]} 0-1

[Event "4th Nikity Blitz 2024"]
[Site "Niteroi"]
[Date "2024.08.31"]
[Round "5.3"]
[White "Filgueiras, Nathan Felipe"]
[Black "Do Valle Cardoso, Lucas"]
[Result "1-0"]
[ECO "B23"]
[WhiteElo "2316"]
[BlackElo "2365"]
[Annotator "RC"]
[PlyCount "62"]
[EventDate "2024.08.28"]
[EventType "swiss"]
[EventCountry "BRA"]
[SourceTitle "playchess.com"]
[Source "ChessBase"]
[SourceQuality "1"]
[TimeControl "180+2"]

1. e4 {[%emt 0:00:02]} c5 {[%emt 0:00:00]} 2. Nc3 {[%emt 0:00:03]} d6 {[%emt 0:00:01]} 3. d4 {[%emt 0:00:01]} cxd4 {[%emt 0:00:01]} 4. Qxd4 {[%emt 0:00:01]} Nc6 {[%emt 0:00:07]} 5. Qd2 {[%emt 0:00:01]} Nf6 {[%emt 0:00:13]} 6. b3 {[%emt 0:00:02]} e6 {[%emt 0:00:01]} 7. Bb2 {[%emt 0:00:02]} Be7 {[%emt 0:00:01]} 8. O-O-O {[%emt 0:00:02]} a6 {[%emt 0:00:01]} 9. f3 {[%emt 0:00:17]} h5 {[%emt 0:00:19]} 10. Nge2 {[%emt 0:00:03]} Bd7 {[%emt 0:00:02]} 11. Kb1 {[%emt 0:00:12]} Rc8 {[%emt 0:00:03]} 12. Nd4 {[%emt 0:00:02]} b5 {[%emt 0:00:08]} 13. Nxc6 {[%emt 0:00:03]} Bxc6 {[%emt 0:00:07]} 14. Ne2 {[%emt 0:00:02]} Qc7 {[%emt 0:00:26]} 15. Nd4 {[%emt 0:00:04]} O-O {[%emt 0:00:55]} 16. Bd3 {[%emt 0:00:02]} Nd7 {[%emt 0:00:08]} 17. h3 {[%emt 0:02:37]} Nc5 {[%emt 0:00:15]} 18. g4 {[%emt 0:00:00]} h4 {[%emt 0:00:01]} 19. g5 {[%emt 0:00:00]} g6 {[%emt 0:00:07]} 20. Rhg1 {[%emt 0:00:00]} e5 {[%emt 0:00:03]} 21. Nxc6 {[%emt 0:00:00]} Qxc6 {[%emt 0:00:00]} 22. Qf2 {[%emt 0:00:00]} a5 {[%emt 0:00:12]} 23. Rd2 {[%emt 0:00:00]} a4 {[%emt 0:00:12]} 24. Qxh4 {[%emt 0:00:00]} Ne6 {[%emt 0:00:07]} 25. Qe1 {[%emt 0:00:00]} Bxg5 {[%emt 0:00:07]} 26. Rdg2 {[%emt 0:00:00]} Bf4 {[%emt 0:00:03]} 27. Qh4 {[%emt 0:00:00]} Be3 {[%emt 0:00:11]} 28. Rxg6+ {[%emt 0:00:09]} fxg6 {[%emt 0:00:00]} 29. Rxg6+ {[%emt 0:00:01]} Ng7 {[%emt 0:00:01]} 30. Qg4 {[%emt 0:00:06]} Rc7 {[%emt 0:00:03]} 31. h4 {[%emt 0:00:02]} Bf4 {[%emt 0:00:04]} 1-0

[Event "4th Nikity Blitz 2024"]
[Site "Niteroi"]
[Date "2024.08.31"]
[Round "5.4"]
[White "Mekhitarian, Krikor Sevag"]
[Black "Rodrigues Mota, Romulo Cardoso S"]
[Result "1-0"]
[ECO "B37"]
[WhiteElo "2560"]
[BlackElo "2110"]
[Annotator "TA"]
[PlyCount "69"]
[EventDate "2024.08.28"]
[EventType "swiss"]
[EventCountry "BRA"]
[SourceTitle "playchess.com"]
[Source "ChessBase"]
[SourceQuality "1"]
[TimeControl "180+2"]

{[%evp 18,69,37,31,71,60,73,-20,85,39,56,28,39,24,38,28,22,41,35,35,45,47,97,91,131,112,151,123,121,122,158,128,137,132,125,139,138,109,116,113,125,127,122,125,132,118,149,108,139,135,347,332,296,185]} 1. Nf3 {[%emt 0:00:01]} Nf6 {[%emt 0:00:01]} 2. c4 {[%emt 0:00:00]} c5 {[%emt 0:00:00]} 3. Nc3 {[%emt 0:00:02]} Nc6 {[%emt 0:00:01]} 4. d4 {[%emt 0:00:02]} cxd4 {[%emt 0:00:02]} 5. Nxd4 g6 6. e4 {[%emt 0:00:02]} d6 {[%emt 0:00:06]} 7. Nc2 {[%emt 0:00:04]} Bg7 {[%emt 0:00:01]} 8. Be2 {[%emt 0:00:01]} O-O {[%emt 0:00:02]} 9. O-O {[%emt 0:00:01]} Be6 {[%emt 0:00:01]} 10. Be3 {[%emt 0:00:04]} Qc8 {[%emt 0:00:08]} 11. Rc1 {[%emt 0:00:02]} Ng4 {[%emt 0:00:02]} 12. Bf4 {[%emt 0:00:24]} (12. Bxg4 $16 {Black must now prevent Be2.} Bxg4 13. Qd2) 12... Nge5 {[%emt 0:00:11]} (12... Bxc3 $11 {remains equal.} 13. bxc3 Nf6) 13. Ne3 {[%emt 0:00:19]} ({White should play} 13. Nd5 $16) 13... Nd4 $14 {[%emt 0:00:08][%cal Oc8d8]} 14. Ncd5 {[%emt 0:00:07]} (14. Qxd4 $2 Nf3+ 15. Bxf3 Bxd4 $19) 14... Bxd5 {[%emt 0:00:16]} 15. Nxd5 {[%emt 0:00:04]} (15. cxd5 $2 Qxc1 16. Qxd4 Nf3+ 17. Bxf3 Qxf1+ (17... Qxb2 $2 18. Qxb2 Bxb2 19. Rb1 $18) 18. Kxf1 Bxd4 $19) 15... Qd7 {[%emt 0:00:07]} 16. Be3 {[%emt 0:00:06]} (16. Qxd4 $2 Nf3+ 17. Bxf3 Bxd4 $19) 16... Nxe2+ {[%emt 0:00:04]} 17. Qxe2 {[%emt 0:00:01]} e6 {[%emt 0:00:03]} 18. Nc3 {[%emt 0:00:05]} Rac8 {[%emt 0:00:24]} 19. b3 {[%emt 0:00:00]} ({Don't play} 19. Bxa7 Nxc4 (19... Rxc4 20. f4 $16) 20. b3 Na3 $11) 19... Nc6 {[%emt 0:00:09] White leaves nothing to chance now.} (19... a6 $14) 20. Rfd1 $16 {[%emt 0:00:03]} Qe7 {[%emt 0:00:02]} 21. Nb5 {[%emt 0:00:06][%csl LRa7,LRd6]} Rfd8 {[%emt 0:00:12]} 22. Nxa7 {[%emt 0:00:16] White has more active pieces.} Nxa7 {[%emt 0:00:01]} 23. Bxa7 {[%emt 0:00:01]} Rd7 {[%emt 0:00:39]} 24. Be3 {[%emt 0:00:20]} d5 {[%emt 0:00:25]} 25. cxd5 {[%emt 0:00:08]} Rxc1 {[%emt 0:00:02]} 26. Rxc1 {[%emt 0:00:03]} exd5 {[%emt 0:00:02]} 27. Rc8+ {[%emt 0:00:11]} Rd8 {[%emt 0:00:06]} 28. Rxd8+ {[%emt 0:00:04]} Qxd8 {[%emt 0:00:01]} 29. exd5 {[%emt 0:00:03]} Qxd5 {[%emt 0:00:00][%mdl 4096] Endgame. KQB-KQB} 30. g3 {[%emt 0:00:05]} Qe4 {[%emt 0:00:10]} 31. Qd1 {[%emt 0:00:12]} h6 {[%emt 0:00:10]} 32. a4 {[%emt 0:00:04]} Kh7 {[%emt 0:00:12]} 33. Qf1 {[%emt 0:00:09]} Bd4 $2 {[%emt 0:00:15] [#]} (33... Qc2 34. Qc4 Qd1+ 35. Kg2) (33... Bf6 $16 34. Qc4 Qxc4 35. bxc4 g5) 34. Qc4 $18 {[%emt 0:00:23][%csl LRd4,LRf7]} Qb1+ {[%emt 0:00:01]} 35. Qc1 {[%emt 0:00:01] Weighted Error Value: White=0.18 (very precise) /Black=0.31.  Loses game:     	---       	Black=1      Mistake:       	White=2     	Black=2      Inaccurate:     	White=2     	Black=2      OK:         	White=10    	Black=5      Best:        	---       	Black=3} 1-0

[Event "4th Nikity Blitz 2024"]
[Site "Niteroi"]
[Date "2024.08.31"]
[Round "5.5"]
[White "Di Berardino, Diego Rafael"]
[Black "Da Cunha, Fabio Barbosa"]
[Result "1-0"]
[ECO "A37"]
[WhiteElo "2472"]
[BlackElo "2034"]
[Annotator "TA"]
[PlyCount "79"]
[EventDate "2024.08.28"]
[EventType "swiss"]
[EventCountry "BRA"]
[SourceTitle "playchess.com"]
[Source "ChessBase"]
[SourceQuality "1"]
[TimeControl "180+2"]

{[%evp 20,78,12,-26,23,21,18,0,0,-18,-5,-35,40,12,66,64,95,96,108,67,146,147,157,169,305,296,300,308,425,437,457,459,445,271,600,573,701,682,945,906,1072,1071,29969,29967,29986,29987,29994,29995,29995,29996,29996,29995,29995,29996,29996,29982,29997,29997,29998,29999,29999]} 1. Nf3 {[%emt 0:00:02]} c5 {[%emt 0:00:01]} 2. c4 {[%emt 0:00:05]} Nc6 {[%emt 0:00:01]} 3. Nc3 {[%emt 0:00:02]} e5 {[%emt 0:00:01]} 4. g3 {[%emt 0:00:02]} g6 {[%emt 0:00:01]} 5. Bg2 {[%emt 0:00:01]} Bg7 {[%emt 0:00:01]} 6. O-O {[%emt 0:00:02]} Nge7 {[%emt 0:00:00]} 7. d3 {[%emt 0:00:02]} O-O {[%emt 0:00:02]} 8. a3 {[%emt 0:00:06]} d6 {[%emt 0:00:02]} 9. Rb1 {[%emt 0:00:02]} a5 {[%emt 0:00:15]} 10. Ne1 {[%emt 0:00:14][%cal Bf3e1,Be1c2,Bc2e3,Be3d5][%mdl 32]} Be6 {[%emt 0:00:08]} 11. Nd5 {[%emt 0:00:04]} f5 {[%emt 0:00:06]} (11... Rb8 {was preferrable.}) 12. Bg5 {[%emt 0:00:03]} h6 {[%emt 0:00:02]} 13. Bxe7 {[%emt 0:00:04]} Nxe7 {[%emt 0:00:05] The position is equal.} 14. Nxe7+ {[%emt 0:00:05]} Qxe7 {[%emt 0:00:01]} 15. Nc2 {[%emt 0:00:01]} Rad8 {[%emt 0:00:46]} (15... f4 $15) 16. Ne3 {[%emt 0:00:03]} f4 {[%emt 0:00:08]} (16... b5 $11) 17. Nd5 $14 {[%emt 0:00:02]} Qf7 {[%emt 0:00:00][%cal Ob7b5]} 18. b4 {[%emt 0:00:04]} axb4 {[%emt 0:00:10]} 19. axb4 {[%emt 0:00:02]} g5 {[%emt 0:00:03] [#]} (19... cxb4 $14 20. Rxb4 Rd7) 20. bxc5 $1 $16 {[%emt 0:00:01][%cal Ob1b7] Black must now prevent Rxb7!} dxc5 {[%emt 0:00:02]} 21. Rxb7 {[%emt 0:00:30]} Qxb7 {[%emt 0:00:25] [#]} (21... Rd7 $142) 22. Nf6+ $1 $18 {[%emt 0:00:02][%mdl 512]} Bxf6 {[%emt 0:00:03]} 23. Bxb7 {[%emt 0:00:01]} Rb8 {[%emt 0:00:09]} 24. Be4 {[%emt 0:00:07]} Rb2 {[%emt 0:00:12]} 25. Re1 {[%emt 0:00:15][%cal Bf1e1,Be1a1,Ba1a7][%mdl 32]} Rfb8 {[%emt 0:00:02]} 26. Kg2 {[%emt 0:00:33]} g4 $2 {[%emt 0:00:02]} (26... Ra2 27. e3 g4 28. exf4 (28. gxf4 Rbb2 $11) 28... exf4) 27. Qa4 {[%emt 0:00:05]} h5 {[%emt 0:00:14]} 28. Qc6 {[%emt 0:00:03][%csl LRc5,LRe6]} Kf7 {[%emt 0:00:04][%cal Bg8f7,Bf7g6,Bg6f5,Bf5e6][%mdl 32]} 29. Ra1 {[%emt 0:00:29] Hoping for Qc7+.} f3+ {[%emt 0:00:22]} 30. exf3 {[%emt 0:00:03]} gxf3+ {[%emt 0:00:01]} 31. Bxf3 {[%emt 0:00:03] White mates.} R2b6 {[%emt 0:00:09]} 32. Ra7+ {[%emt 0:00:48]} Kg6 33. Be4+ {[%emt 0:00:00]} Bf5 {[%emt 0:00:08]} 34. Bxf5+ {[%emt 0:00:00]} Kxf5 {[%emt 0:00:01]} 35. Qe4+ {[%emt 0:00:00]} Ke6 {[%emt 0:00:02]} 36. Qd5+ {[%emt 0:00:00]} Kf5 {[%emt 0:00:01]} 37. Qf7 {[%emt 0:00:00]} Rb2 {[%emt 0:00:09]} 38. Qxh5+ {[%emt 0:00:00]} Ke6 {[%emt 0:00:00]} 39. Qg4+ {[%emt 0:00:00]} Kd6 {[%emt 0:00:01]} 40. Qd7# {[%emt 0:00:00] White took control after the opening.   Weighted Error Value: White=0.12 (very precise) /Black=0.74.  Mistake:       	---       	Black=5      Inaccurate:     	White=4     	Black=3      OK:         	White=5     	Black=3      Best:        	White=2     	---        Strong:       	White=1     	---        Brilliant:      	White=1     	---} 1-0

[Event "4th Nikity Blitz 2024"]
[Site "Niteroi"]
[Date "2024.08.31"]
[Round "6.1"]
[White "Perdomo, Leandro"]
[Black "Santiago, Yago De Moura"]
[Result "0-1"]
[ECO "D20"]
[WhiteElo "2359"]
[BlackElo "2455"]
[Annotator "RC"]
[PlyCount "41"]
[EventDate "2024.08.28"]
[EventType "swiss"]
[EventCountry "BRA"]
[SourceTitle "playchess.com"]
[Source "ChessBase"]
[SourceQuality "1"]
[TimeControl "180+2"]

1. d4 {[%emt 0:00:00]} d5 {[%emt 0:00:02]} 2. c4 {[%emt 0:00:01]} dxc4 {[%emt 0:00:01]} 3. e3 {[%emt 0:00:02]} c5 {[%emt 0:00:01]} 4. Bxc4 {[%emt 0:00:01]} cxd4 {[%emt 0:00:02]} 5. exd4 {[%emt 0:00:01]} Nf6 {[%emt 0:00:03]} 6. Nf3 {[%emt 0:00:01]} g6 {[%emt 0:00:02]} 7. Ne5 {[%emt 0:00:04]} e6 {[%emt 0:00:02]} 8. O-O {[%emt 0:00:06]} Bg7 {[%emt 0:00:02]} 9. Nc3 {[%emt 0:00:20]} O-O {[%emt 0:00:02]} 10. Bg5 {[%emt 0:00:02]} h6 {[%emt 0:00:14]} 11. Bh4 {[%emt 0:00:10]} Nc6 {[%emt 0:00:02]} 12. Nxc6 {[%emt 0:00:59]} bxc6 {[%emt 0:00:01]} 13. Bb3 {[%emt 0:00:02]} a5 {[%emt 0:00:07]} 14. Re1 {[%emt 0:00:09]} Ba6 {[%emt 0:00:14]} 15. Rc1 {[%emt 0:00:06]} Bb5 {[%emt 0:00:40]} 16. Nxb5 {[%emt 0:01:07]} cxb5 {[%emt 0:00:01]} 17. d5 {[%emt 0:00:18]} g5 {[%emt 0:00:14]} 18. Bg3 {[%emt 0:00:04]} exd5 {[%emt 0:00:33]} 19. Rc5 {[%emt 0:00:03]} Qb6 {[%emt 0:00:01]} 20. Rc1 {[%emt 0:00:03]} Rfe8 {[%emt 0:00:23]} 21. Be5 {[%emt 0:00:05]} 0-1

[Event "4th Nikity Blitz 2024"]
[Site "Niteroi"]
[Date "2024.08.31"]
[Round "6.2"]
[White "Mekhitarian, Krikor Sevag"]
[Black "Filgueiras, Nathan Felipe"]
[Result "1-0"]
[ECO "D35"]
[WhiteElo "2560"]
[BlackElo "2316"]
[Annotator "TA"]
[PlyCount "48"]
[EventDate "2024.08.28"]
[EventType "swiss"]
[EventCountry "BRA"]
[SourceTitle "playchess.com"]
[Source "ChessBase"]
[SourceQuality "1"]
[TimeControl "180+2"]

{[%evp 12,48,0,0,35,7,29,30,58,50,44,39,35,18,37,15,27,17,16,18,38,35,41,42,79,83,85,24,18,32,108,124,114,111,136,135,127,127,165]} 1. Nf3 {[%emt 0:00:02]} Nf6 {[%emt 0:00:03]} 2. c4 {[%emt 0:00:01]} e6 {[%emt 0:00:02]} 3. Nc3 {[%emt 0:00:01]} d5 {[%emt 0:00:01]} 4. d4 {[%emt 0:00:01]} c6 {[%emt 0:00:12]} 5. Qc2 {[%emt 0:00:02]} Nbd7 {[%emt 0:00:15]} 6. cxd5 {[%emt 0:00:08]} exd5 {[%emt 0:00:06]} 7. Bf4 {[%emt 0:00:02]} Bb4 {[%emt 0:00:15]} 8. e3 {[%emt 0:00:03]} O-O {[%emt 0:00:04]} 9. Bd3 {[%emt 0:00:01]} Qe7 {[%emt 0:00:05] White has an edge.} 10. O-O {[%emt 0:00:03]} Bd6 {[%emt 0:00:03]} 11. Bxd6 {[%emt 0:00:06]} Qxd6 {[%emt 0:00:01]} 12. Rfb1 {[%emt 0:00:01]} a5 {[%emt 0:00:12]} 13. Na4 {[%emt 0:00:02]} Re8 {[%emt 0:00:08]} 14. a3 {[%emt 0:00:02]} b5 {[%emt 0:00:09]} 15. Nc3 {[%emt 0:00:13]} a4 {[%emt 0:00:01]} 16. b3 {[%emt 0:00:22]} axb3 {[%emt 0:00:02]} 17. Qxb3 {[%emt 0:00:01]} Nb6 {[%emt 0:00:19]} 18. a4 {[%emt 0:00:00]} Nxa4 {[%emt 0:00:21] [#]} 19. Nxb5 $1 {[%emt 0:01:21]} cxb5 $11 {[%emt 0:00:04]} 20. Bxb5 {[%emt 0:00:01]} Bd7 {[%emt 0:00:06]} 21. Rxa4 $16 {[%emt 0:00:01]} (21. Bxa4 $2 {loses.} Reb8 22. Qc3 Rxa4 $19) 21... Rab8 {[%emt 0:00:22]} 22. Rb4 {[%emt 0:00:04]} Bxb5 {[%emt 0:00:18]} 23. Rxb5 {[%emt 0:00:01]} Rxb5 {[%emt 0:00:07]} 24. Qxb5 {[%emt 0:00:01]} Rd8 {[%emt 0:00:03] Weighted Error Value: White=0.11 (very precise) /Black=0.22 (precise) .  Mistake:       	White=1     	Black=1      Inaccurate:     	White=1     	Black=2      OK:         	White=4     	Black=3      Best:        	White=2     	---} 1-0

[Event "4th Nikity Blitz 2024"]
[Site "Niteroi"]
[Date "2024.08.31"]
[Round "6.3"]
[White "Quintiliano, Renato R."]
[Black "Aranha Filho, Alvaro Z."]
[Result "0-1"]
[ECO "A13"]
[WhiteElo "2499"]
[BlackElo "2196"]
[Annotator "TA"]
[PlyCount "42"]
[EventDate "2024.08.28"]
[EventType "swiss"]
[EventCountry "BRA"]
[SourceTitle "playchess.com"]
[Source "ChessBase"]
[SourceQuality "1"]
[TimeControl "180+2"]

{[%evp 11,42,0,8,4,9,0,0,20,29,0,0,-5,0,-19,-14,-15,-10,-30,-31,-19,8,20,6,-10,0,12,0,3,24,0,64,59,189]} 1. Nf3 {[%emt 0:00:01]} Nf6 {[%emt 0:00:02]} 2. c4 {[%emt 0:00:01]} e6 {[%emt 0:00:05]} 3. Nc3 {[%emt 0:00:02]} d5 {[%emt 0:00:01]} 4. e3 {[%emt 0:00:00]} Be7 {[%emt 0:00:04]} 5. b3 {[%emt 0:00:02]} O-O {[%emt 0:00:02]} 6. Bb2 {[%emt 0:00:00]} b6 {[%emt 0:00:02]} 7. cxd5 {[%emt 0:00:12]} (7. d4 {simplifies} Bb7 8. Rc1 c5 9. cxd5 Nxd5 10. Nxd5 Qxd5 11. Bc4) 7... Nxd5 {[%emt 0:00:02]} 8. Nxd5 {[%emt 0:00:32]} Qxd5 {[%emt 0:00:02]} 9. Qc2 {[%emt 0:00:05] The position is equal.} Ba6 {[%emt 0:00:49] Prevents Bd3} 10. Bxa6 {[%emt 0:00:09]} Nxa6 {[%emt 0:00:02]} 11. O-O {[%emt 0:00:17]} c5 {[%emt 0:00:17]} 12. a3 {[%emt 0:00:34] Inhibits Nb4.} Rfd8 {[%emt 0:00:11]} 13. Rfd1 {[%emt 0:00:06]} Qd3 {[%emt 0:00:09]} 14. Qxd3 {[%emt 0:00:04]} Rxd3 {[%emt 0:00:02]} 15. Bc3 {[%emt 0:00:02]} Bf6 {[%emt 0:00:11]} 16. Bxf6 {[%emt 0:01:12]} gxf6 {[%emt 0:00:02]} 17. Rdb1 {[%emt 0:00:01]} Rc8 {[%emt 0:00:27]} 18. Kf1 {[%emt 0:00:12]} c4 {[%emt 0:00:23]} 19. b4 {[%emt 0:00:02]} e5 {[%emt 0:00:22]} 20. Ke2 {[%emt 0:00:05]} e4 {[%emt 0:00:04]} ({Black should play} 20... Nc7 $11) 21. Nd4 $14 {[%emt 0:00:05]} Ra8 {[%emt 0:00:25][%mdl 32768] Weighted Error Value: White=0.09 (flawless) /Black=0.15 (very precise) .  Mistake:       	---       	Black=2      Inaccurate:     	White=1     	Black=1      OK:         	White=5     	Black=3      Best:        	White=1     	---       . Loss on time!?} ({Black should try} 21... Nc7 $14) 0-1